fUSD/lending_fUSD_20250223
["ID","MTS","AMOUNT","RATE_DAILY","PERIOD"]
[354213317,1740349880913,-5290.33,0.00016849,2]
[354213318,1740349880922,-1436.11,0.00016849,2]
[354213319,1740349880932,-500.0,0.00016849,2]
[354213320,1740349880941,-1349.8,0.00016849,2]
[354213321,1740349880950,-6290.39,0.00016849,2]
[354213322,1740349880960,-758.05,0.00016849,2]
[354213323,1740349880969,-2671.9,0.00016849,2]
[354213324,1740349880979,-2196.52,0.00016849,2]
[354213325,1740349880988,-5756.72,0.00016849,2]
[354213326,1740349880998,-4403.16,0.00016849,2]
[354213327,1740349881008,-2749.58,0.00016849,2]
[354213328,1740349881018,-5706.29,0.00016849,2]
[354213329,1740349881028,-526.21,0.00016849,2]
[354213330,1740349881037,-555.29,0.00016849,2]
[354213331,1740349881046,-500.0,0.00016849,2]
[354213332,1740349881055,-2415.31,0.00016849,2]
[354213333,1740349881065,-500.0,0.00016849,2]
[354213334,1740349881074,-3407.13,0.00016849,2]
[354213335,1740349881083,-1418.97,0.00016849,2]
[354213336,1740349881092,-4562.56,0.00016849,2]
[354213337,1740349881102,-760.69,0.00016849,2]
[354213338,1740349881111,-500.0,0.00016849,2]
[354213339,1740349881120,-1428.34,0.00016849,2]
[354213340,1740349881129,-874.66,0.00016849,2]
[354213341,1740349881138,-2154.67,0.00016849,2]
[354213342,1740349881148,-4107.53,0.00016849,2]
[354213343,1740349881157,-1576.33,0.00016849,2]
[354213344,1740349881166,-1748.41,0.00016849,2]
[354213345,1740349881175,-500.0,0.00016849,2]
[354213346,1740349881185,-17475.75,0.00016849,2]
[354213347,1740349881196,-500.0,0.00016849,2]
[354213348,1740349881205,-4070.64,0.00016849,2]
[354213349,1740349881214,-2786.27,0.00016849,2]
[354213350,1740349881224,-3159.81,0.00016849,2]
[354213351,1740349881233,-924.33,0.00016849,2]
[354213352,1740349881242,-1525.63,0.00016849,2]
[354213353,1740349881250,-2272.18,0.00016849,2]
[354213354,1740349881259,-709.02,0.00016849,2]
[354213355,1740349881268,-3619.7,0.00016849,2]
[354213356,1740349881277,-4642.12,0.00016849,2]
[354213357,1740349881287,-500.0,0.00016849,2]
[354213358,1740349881295,-1679.7,0.00016849,2]
[354213359,1740349881305,-4720.68,0.00016849,2]
[354213360,1740349881590,-150.0,0.00016849,2]
[354213361,1740349881599,-500.0,0.00016849,2]
[354213362,1740349881609,-1571.13,0.00016849,2]
[354213363,1740349881618,-3290.16,0.00016849,2]
[354213364,1740349881627,-250.11233461,0.00016849,2]
[354213365,1740349881636,-3917.01,0.00016849,2]
[354213366,1740349881645,-1753.32,0.00016849,2]
[354213367,1740349881654,-4787.87,0.00016849,2]
[354213368,1740349881663,-500.0,0.00016849,2]
[354213369,1740349881672,-2096.04,0.00016849,2]
[354213370,1740349881682,-150.0,0.00016849,2]
[354213371,1740349881691,-3809.91,0.00016849,2]
[354213372,1740349881700,-683.81,0.00016849,2]
[354213373,1740349881710,-2412.36,0.00016849,2]
[354213374,1740349881719,-1099.0,0.00016849,2]
[354213375,1740349881730,-4433.62,0.00016849,2]
[354213376,1740349881740,-645.38,0.00016849,2]
[354213377,1740349881751,-1929.52,0.00016849,2]
[354213378,1740349881760,-332.07425204,0.00016849,2]
[354213379,1740349881769,-2294.55,0.00016849,2]
[354213380,1740349881779,-1697.61,0.00016849,2]
[354213381,1740349881788,-3462.11,0.00016849,2]
[354213382,1740349881797,-707.43,0.00016849,2]
[354213383,1740349881806,-5621.54,0.00016849,2]
[354213384,1740349881816,-3914.54,0.00016849,2]
[354213385,1740349881825,-4223.13,0.00016849,2]
[354213386,1740349881834,-2913.24,0.00016849,2]
[354213387,1740349881844,-500.0,0.00016849,2]
[354213388,1740349881853,-3601.17,0.00016849,2]
[354213389,1740349881862,-500.0,0.00016849,2]
[354213390,1740349881872,-1208.42,0.00016849,2]
[354213391,1740349881881,-2154.42,0.00016849,2]
[354213392,1740349881891,-7088.97,0.00016849,2]
[354213393,1740349881900,-500.0,0.00016849,2]
[354213394,1740349881910,-2016.18,0.00016849,2]
[354213395,1740349881919,-4814.39,0.00016849,2]
[354213396,1740349881929,-500.0,0.00016849,2]
[354213397,1740349881938,-5139.97,0.00016849,2]
[354213398,1740349881949,-500.0,0.00016849,2]
[354213399,1740349881959,-4721.46,0.00016849,2]
[354213400,1740349881968,-3404.92,0.00016849,2]
[354213401,1740349881978,-4384.06,0.00016849,2]
[354213402,1740349881987,-1606.48,0.00016849,2]
[354213403,1740349881996,-500.0,0.00016849,2]
[354213404,1740349882005,-4219.29,0.00016849,2]
[354213405,1740349882015,-500.0,0.00016849,2]
[354213406,1740349882024,-2226.1,0.00016849,2]
[354213407,1740349882032,-703.07,0.00016849,2]
[354213408,1740349882041,-500.0,0.00016849,2]
[354213409,1740349882051,-3249.4,0.00016849,2]
[354213410,1740349882061,-500.0,0.00016849,2]
[354213411,1740349882071,-500.0,0.00016849,2]
[354213412,1740349882080,-500.0,0.00016849,2]
[354213413,1740349882090,-1604.38,0.00016849,2]
[354213414,1740349882099,-5239.84,0.00016849,2]
[354213415,1740349882108,-2505.1,0.00016849,2]
[354213416,1740349882117,-585.37,0.00016849,2]
[354213417,1740349882126,-1246.44,0.00016849,2]
[354213418,1740349882136,-2941.8,0.00016849,2]
[354213419,1740349882146,-1295.66,0.00016849,2]
[354213420,1740349882155,-5072.55,0.00016849,2]
[354213421,1740349882165,-1387.21,0.00016849,2]
[354213422,1740349882174,-9201.19,0.00016849,2]
[354213423,1740349882183,-3681.18,0.00016849,2]
[354213424,1740349882192,-2612.84,0.00016849,2]
[354213425,1740349882202,-3774.54,0.00016849,2]
[354213426,1740349882211,-948.51,0.00016849,2]
[354213427,1740349882220,-532.2604962,0.00016849,2]
[354213428,1740349882230,-3562.07,0.00016849,2]
[354213429,1740349882239,-6253.12,0.00016849,2]
[354213430,1740349882249,-1983.96,0.00016849,2]
[354213431,1740349882258,-930.43,0.00016849,2]
[354213432,1740349882267,-526.95,0.00016849,2]
[354213433,1740349882277,-1344.51,0.00016849,2]
[354213434,1740349882286,-500.0,0.00016849,2]
[354213435,1740349882296,-500.0,0.00016849,2]
[354213436,1740349882305,-1412.39,0.00016849,2]
[354213437,1740349882315,-4716.74,0.00016849,2]
[354213438,1740349882324,-4536.23,0.00016849,2]
[354213439,1740349882333,-5993.06,0.00016849,2]
[354213440,1740349882343,-500.0,0.00016849,2]
[354213441,1740349882352,-500.0,0.00016849,2]
[354213442,1740349882362,-500.0,0.00016849,2]
[354213443,1740349882371,-1885.48,0.00016849,2]
[354213444,1740349882380,-500.0,0.00016849,2]
[354213445,1740349882390,-500.0,0.00016849,2]
[354213446,1740349882399,-3479.65,0.00016849,2]
[354213447,1740349882409,-500.0,0.00016849,2]
[354213448,1740349882419,-6049.51,0.00016849,2]
[354213449,1740349882429,-1400.03,0.00016849,2]
[354213450,1740349882441,-500.0,0.00016849,2]
[354213451,1740349882450,-4633.59,0.00016849,2]
[354213452,1740349882459,-3476.34,0.00016849,2]
[354213453,1740349882469,-3140.36,0.00016849,2]
[354213454,1740349882478,-500.0,0.00016849,2]
[354213455,1740349882488,-500.0,0.00016849,2]
[354213456,1740349882498,-2481.53,0.00016849,2]
[354213457,1740349882507,-8851.15,0.00016849,2]
[354213458,1740349882520,-500.0,0.00016849,2]
[354213459,1740349882530,-500.0,0.00016849,2]
[354213460,1740349882540,-500.0,0.00016849,2]
[354213461,1740349882550,-2581.76,0.00016849,2]
[354213462,1740349882561,-2181.78,0.00016849,2]
[354213463,1740349882572,-2756.2,0.00016849,2]
[354213464,1740349882582,-500.0,0.00016849,2]
[354213465,1740349882593,-3980.89,0.00016849,2]
[354213466,1740349882602,-1745.58,0.00016849,2]
[354213467,1740349882612,-500.0,0.00016849,2]
[354213468,1740349882622,-5532.19,0.00016849,2]
[354213469,1740349882631,-657.2,0.00016849,2]
[354213470,1740349882641,-2341.48,0.00016849,2]
[354213471,1740349882650,-500.0,0.00016849,2]
[354213472,1740349882659,-667.62,0.00016849,2]
[354213473,1740349882669,-4890.16,0.00016849,2]
[354213474,1740349882678,-500.0,0.00016849,2]
[354213475,1740349882689,-2345.07,0.00016849,2]
[354213476,1740349882698,-500.0,0.00016849,2]
[354213477,1740349882708,-1229.42,0.00016849,2]
[354213478,1740349882718,-517.65,0.00016849,2]
[354213479,1740349882727,-1325.19,0.00016849,2]
[354213480,1740349882737,-500.67,0.00016849,2]
[354213481,1740349882746,-973.9,0.00016849,2]
[354213482,1740349882756,-644.39,0.00016849,2]
[354213483,1740349882765,-3825.62,0.00016849,2]
[354213484,1740349882775,-5219.19,0.00016849,2]
[354213485,1740349882785,-3401.5,0.00016849,2]
[354213486,1740349882795,-1228.65,0.00016849,2]
[354213487,1740349882804,-500.0,0.00016849,2]
[354213488,1740349882815,-9468.28,0.00016849,2]
[354213489,1740349882824,-1584.73,0.00016849,2]
[354213490,1740349882834,-500.0,0.00016849,2]
[354213491,1740349882843,-500.0,0.00016849,2]
[354213492,1740349882852,-150.0,0.00016873,2]
[354213493,1740349882862,-501.63048885,0.00016876,2]
[354213494,1740349882872,-269.69577374,0.00016876,2]
[354213495,1740349882881,-500.0,0.00016876,2]
[354213496,1740349882890,-1099.0,0.00016876,2]
[354213497,1740349882899,-278.16,0.00016877,2]
[354213498,1740349882909,-278.16,0.00016877,2]
[354213499,1740349882919,-278.16,0.00016877,2]
[354213500,1740349882928,-278.16,0.00016877,2]
[354213501,1740349882938,-278.16,0.00016877,2]
[354213502,1740349882947,-278.16,0.00016877,2]
[354213503,1740349882957,-278.16,0.00016877,2]
[354213504,1740349882966,-278.16,0.00016877,2]
[354213505,1740349882975,-278.16,0.00016877,2]
[354213506,1740349882984,-278.16,0.00016877,2]
[354213507,1740349882993,-278.16,0.00016877,2]
[354213508,1740349883003,-278.16,0.00016877,2]
[354213509,1740349883012,-278.16,0.00016877,2]
[354213510,1740349883021,-278.16,0.00016877,2]
[354213511,1740349883031,-278.16,0.00016877,2]
[354213512,1740349883040,-278.16,0.00016877,2]
[354213513,1740349883049,-278.16,0.00016877,2]
[354213514,1740349883059,-278.16,0.00016877,2]
[354213515,1740349883069,-278.16,0.00016877,2]
[354213516,1740349883079,-278.16,0.00016877,2]
[354213517,1740349883090,-278.16,0.00016877,2]
[354213518,1740349883101,-278.16,0.00016877,2]
[354213519,1740349883111,-278.16,0.00016877,2]
[354213520,1740349883120,-278.16,0.00016877,2]
[354213521,1740349883129,-278.16,0.00016877,2]
[354213522,1740349883138,-278.16,0.00016877,2]
[354213523,1740349883147,-278.16,0.00016877,2]
[354213524,1740349883159,-278.16,0.00016877,2]
[354213525,1740349883169,-278.16,0.00016877,2]
[354213526,1740349883179,-278.16,0.00016877,2]
[354213527,1740349883189,-277.62,0.00016877,2]
[354213528,1740349883199,-439.29,0.00016877,2]
[354213529,1740349883208,-1739.79,0.00016877,2]
[354213530,1740349883220,-150.0,0.00016877,2]
[354213531,1740349883230,-300.0,0.00016877,2]
[354213532,1740349883239,-278.16,0.00016877,2]
[354213533,1740349883248,-278.16,0.00016877,2]
[354213534,1740349883257,-278.16,0.00016877,2]
[354213535,1740349883266,-13686.55418343,0.0001688,30]
[354213536,1740349883275,-5278.61043632,0.000169,2]
[354213537,1740349883285,-500.0,0.00016904,2]
[354213538,1740349883294,-1099.0,0.00016904,2]
[354213539,1740349883303,-6209.10646246,0.00016931,5]
[354213540,1740349883312,-567.68,0.00016931,2]
[354213541,1740349883321,-444.44,0.00016931,2]
[354213542,1740349883330,-444.44,0.00016931,2]
[354213543,1740349883339,-500.0,0.00016931,2]
[354213544,1740349883348,-500.0,0.00016931,2]
[354213545,1740349883357,-500.0,0.00016931,2]
[354213546,1740349883367,-1093.12,0.00016931,2]
[354213547,1740349883376,-1156.11,0.00016931,2]
[354213548,1740349883385,-1348.02,0.00016931,2]
[354213549,1740349883394,-500.0,0.00016931,2]
[354213550,1740349883403,-895.6,0.00016931,2]
[354213551,1740349883412,-516.81,0.00016931,2]
[354213552,1740349883422,-915.35,0.00016931,2]
[354213553,1740349883432,-500.0,0.00016931,2]
[354213554,1740349883441,-500.0,0.00016931,2]
[354213555,1740349883450,-500.0,0.00016931,2]
[354213556,1740349883459,-1694.17,0.00016931,2]
[354213557,1740349883467,-1649.69,0.00016931,2]
[354213558,1740349883476,-500.0,0.00016931,2]
[354213559,1740349883485,-681.06,0.00016931,2]
[354213560,1740349883495,-793.26,0.00016931,2]
[354213561,1740349883503,-500.0,0.00016931,2]
[354213562,1740349883513,-500.0,0.00016931,2]
[354213563,1740349883524,-500.0,0.00016931,2]
[354213564,1740349883533,-500.0,0.00016931,2]
[354213565,1740349883542,-500.0,0.00016931,2]
[354213566,1740349883551,-645.41,0.00016931,2]
[354213567,1740349883561,-500.0,0.00016931,2]
[354213568,1740349883570,-523.26,0.00016931,2]
[354213569,1740349883580,-798.0,0.00016931,2]
[354213570,1740349883589,-500.0,0.00016931,2]
[354213571,1740349883599,-500.0,0.00016931,2]
[354213572,1740349883608,-1129.2,0.00016931,2]
[354213573,1740349883617,-500.0,0.00016931,2]
[354213574,1740349883626,-500.0,0.00016931,2]
[354213575,1740349883635,-500.0,0.00016931,2]
[354213576,1740349883644,-500.0,0.00016931,2]
[354213577,1740349883654,-563.19579303,0.00016931,2]
[354213578,1740349883664,-500.0,0.00016931,2]
[354213579,1740349883673,-1431.86,0.00016931,2]
[354213580,1740349883682,-1421.57,0.00016931,2]
[354213581,1740349883691,-500.0,0.00016931,2]
[354213582,1740349883700,-500.0,0.00016931,2]
[354213583,1740349883710,-500.0,0.00016931,2]
[354213584,1740349883719,-500.0,0.00016931,2]
[354213585,1740349883728,-500.0,0.00016931,2]
[354213586,1740349883737,-763.43,0.00016931,2]
[354213587,1740349883746,-863.75,0.00016931,2]
[354213588,1740349883755,-1090.21,0.00016931,2]
[354213589,1740349883765,-500.0,0.00016931,2]
[354213590,1740349883774,-649.37,0.00016931,2]
[354213591,1740349883783,-609.6,0.00016931,2]
[354213592,1740349883792,-500.0,0.00016931,2]
[354213593,1740349883801,-1597.72,0.00016931,2]
[354213594,1740349883810,-500.0,0.00016931,2]
[354213595,1740349883819,-350.21071612,0.00016931,2]
[354213596,1740349883828,-500.0,0.00016931,2]
[354213597,1740349883837,-500.0,0.00016931,2]
[354213598,1740349883846,-1440.9,0.00016931,2]
[354213599,1740349883855,-500.0,0.00016931,2]
[354213600,1740349883865,-592.49,0.00016931,2]
[354213601,1740349883875,-1192.98,0.00016931,2]
[354213602,1740349883955,-500.0,0.00016931,2]
[354213603,1740349883965,-500.0,0.00016931,2]
[354213604,1740349883974,-500.0,0.00016931,2]
[354213605,1740349883983,-1240.88,0.00016931,2]
[354213606,1740349883992,-782.65,0.00016931,2]
[354213607,1740349884001,-1118.85,0.00016931,2]
[354213608,1740349884010,-500.0,0.00016931,2]
[354213609,1740349884019,-500.0,0.00016931,2]
[354213610,1740349884028,-500.0,0.00016931,2]
[354213611,1740349884037,-1621.04,0.00016931,2]
[354213612,1740349884046,-614.67,0.00016931,2]
[354213613,1740349884058,-1198.36,0.00016931,2]
[354213614,1740349884067,-500.0,0.00016931,2]
[354213615,1740349884076,-608.12,0.00016931,2]
[354213616,1740349884085,-671.15,0.00016931,2]
[354213617,1740349884094,-564.11,0.00016931,2]
[354213618,1740349884103,-500.0,0.00016931,2]
[354213619,1740349884111,-500.0,0.00016931,2]
[354213620,1740349884121,-500.0,0.00016931,2]
[354213621,1740349884129,-500.0,0.00016931,2]
[354213622,1740349884139,-500.0,0.00016931,2]
[354213623,1740349884148,-904.88,0.00016931,2]
[354213624,1740349884157,-500.0,0.00016931,2]
[354213625,1740349884166,-500.0,0.00016931,2]
[354213626,1740349884175,-500.0,0.00016931,2]
[354213627,1740349884184,-500.0,0.00016931,2]
[354213628,1740349884194,-503.91,0.00016931,2]
[354213629,1740349884203,-500.0,0.00016931,2]
[354213630,1740349884212,-500.0,0.00016931,2]
[354213631,1740349884221,-500.0,0.00016931,2]
[354213632,1740349884230,-679.91,0.00016931,2]
[354213633,1740349884239,-550.2,0.00016931,2]
[354213634,1740349884248,-795.19,0.00016931,2]
[354213635,1740349884257,-500.0,0.00016931,2]
[354213636,1740349884266,-1739.38,0.00016931,2]
[354213637,1740349884275,-748.37,0.00016931,2]
[354213638,1740349884284,-500.0,0.00016931,2]
[354213639,1740349884293,-708.49,0.00016931,2]
[354213640,1740349884302,-620.41,0.00016931,2]
[354213641,1740349884311,-500.0,0.00016931,2]
[354213642,1740349884320,-500.0,0.00016931,2]
[354213643,1740349884329,-500.0,0.00016931,2]
[354213644,1740349884338,-500.0,0.00016931,2]
[354213645,1740349884347,-500.0,0.00016931,2]
[354213646,1740349884356,-506.30328637,0.00016931,2]
[354213647,1740349884365,-677.65,0.00016931,2]
[354213648,1740349884375,-681.58,0.00016931,2]
[354213649,1740349884383,-500.0,0.00016931,2]
[354213650,1740349884392,-514.07,0.00016931,2]
[354213651,1740349884401,-1558.42,0.00016931,2]
[354213652,1740349884410,-199.823275,0.00016931,2]
[354213653,1740349884419,-500.0,0.00016931,2]
[354213654,1740349884428,-500.0,0.00016931,2]
[354213655,1740349884437,-602.81,0.00016931,2]
[354213656,1740349884447,-1016.25,0.00016931,2]
[354213657,1740349884456,-290.07898309,0.00016931,2]
[354213658,1740349884466,-500.0,0.00016931,2]
[354213659,1740349884475,-500.0,0.00016931,2]
[354213660,1740349884484,-500.0,0.00016931,2]
[354213661,1740349884492,-565.85,0.00016931,2]
[354213662,1740349884501,-500.0,0.00016931,2]
[354213663,1740349884511,-500.0,0.00016931,2]
[354213664,1740349884523,-708.16,0.00016931,2]
[354213665,1740349884533,-500.0,0.00016931,2]
[354213666,1740349884542,-500.0,0.00016931,2]
[354213667,1740349884551,-512.95,0.00016931,2]
[354213668,1740349884561,-500.0,0.00016931,2]
[354213669,1740349884570,-563.72,0.00016931,2]
[354213670,1740349884578,-1362.33,0.00016931,2]
[354213671,1740349884587,-500.0,0.00016931,2]
[354213672,1740349884597,-500.0,0.00016931,2]
[354213673,1740349884607,-1012.62,0.00016931,2]
[354213674,1740349884616,-1837.84,0.00016931,2]
[354213675,1740349884626,-2529.64,0.00016931,2]
[354213676,1740349884635,-500.0,0.00016931,2]
[354213677,1740349884645,-500.0,0.00016931,2]
[354213678,1740349884654,-500.0,0.00016931,2]
[354213679,1740349884663,-500.0,0.00016931,2]
[354213680,1740349884673,-783.76,0.00016931,2]
[354213681,1740349884682,-545.27,0.00016931,2]
[354213682,1740349884691,-500.0,0.00016931,2]
[354213683,1740349884701,-1030.81,0.00016931,2]
[354213684,1740349884710,-304.53418106,0.00016931,2]
[354213685,1740349884719,-500.37,0.00016931,2]
[354213686,1740349884729,-500.0,0.00016931,2]
[354213687,1740349884738,-717.32,0.00016931,2]
[354213688,1740349884747,-797.57,0.00016931,2]
[354213689,1740349884756,-578.44,0.00016931,2]
[354213690,1740349884765,-500.0,0.00016931,2]
[354213691,1740349884774,-756.75,0.00016931,2]
[354213692,1740349884783,-1497.62,0.00016931,2]
[354213693,1740349884792,-1770.57,0.00016931,2]
[354213694,1740349884802,-784.78,0.00016931,2]
[354213695,1740349884812,-1765.88,0.00016931,2]
[354213696,1740349884821,-2582.73,0.00016931,2]
[354213697,1740349884831,-500.0,0.00016931,2]
[354213698,1740349884840,-564.37,0.00016931,2]
[354213699,1740349884849,-1422.48,0.00016931,2]
[354213700,1740349884859,-500.0,0.00016931,2]
[354213701,1740349884868,-2229.59,0.00016931,2]
[354213702,1740349884877,-279.28878261,0.00016931,2]
[354213703,1740349884886,-500.0,0.00016931,2]
[354213704,1740349884896,-1800.36,0.00016931,2]
[354213705,1740349884905,-500.0,0.00016931,2]
[354213706,1740349884915,-500.0,0.00016931,2]
[354213707,1740349884924,-2222.23,0.00016931,2]
[354213708,1740349884934,-500.0,0.00016931,2]
[354213709,1740349884942,-500.0,0.00016931,2]
[354213710,1740349884952,-500.0,0.00016931,2]
[354213711,1740349884961,-500.0,0.00016931,2]
[354213712,1740349884970,-564.96,0.00016931,2]
[354213713,1740349884979,-500.0,0.00016931,2]
[354213714,1740349884988,-681.63,0.00016931,2]
[354213715,1740349884997,-558.55,0.00016931,2]
[354213716,1740349885007,-500.0,0.00016931,2]
[354213717,1740349885016,-500.0,0.00016931,2]
[354213718,1740349885026,-1629.15,0.00016931,2]
[354213719,1740349885035,-1542.47,0.00016931,2]
[354213720,1740349885044,-561.05,0.00016931,2]
[354213721,1740349885053,-1535.15,0.00016931,2]
[354213722,1740349885063,-738.85,0.00016931,2]
[354213723,1740349885072,-2269.58,0.00016931,2]
[354213724,1740349885082,-868.84,0.00016931,2]
[354213725,1740349885091,-1335.0,0.00016931,2]
[354213726,1740349885100,-1672.07,0.00016931,2]
[354213727,1740349885109,-2109.65,0.00016931,2]
[354213728,1740349885119,-500.0,0.00016931,2]
[354213729,1740349885128,-1086.37,0.00016931,2]
[354213730,1740349885138,-1704.59,0.00016931,2]
[354213731,1740349885147,-691.82,0.00016931,2]
[354213732,1740349885157,-1370.41,0.00016931,2]
[354213733,1740349885166,-474.54361454,0.00016931,2]
[354213734,1740349885175,-500.0,0.00016931,2]
[354213735,1740349885184,-781.08,0.00016931,2]
[354213736,1740349885193,-650.9,0.00016931,2]
[354213737,1740349885203,-1228.32,0.00016931,2]
[354213738,1740349885212,-2394.76,0.00016931,2]
[354213739,1740349885222,-551.29,0.00016931,2]
[354213740,1740349885231,-1495.46,0.00016931,2]
[354213741,1740349885240,-500.0,0.00016931,2]
[354213742,1740349885250,-500.0,0.00016931,2]
[354213743,1740349885259,-635.58,0.00016931,2]
[354213744,1740349885268,-1100.86,0.00016931,2]
[354213745,1740349885277,-500.0,0.00016931,2]
[354213746,1740349885287,-991.31,0.00016931,2]
[354213747,1740349885296,-500.0,0.00016931,2]
[354213748,1740349885306,-693.94,0.00016931,2]
[354213749,1740349885315,-776.59,0.00016931,2]
[354213750,1740349885325,-1548.96,0.00016931,2]
[354213751,1740349885334,-500.0,0.00016931,2]
[354213752,1740349885343,-623.46,0.00016931,2]
[354213753,1740349885352,-500.0,0.00016931,2]
[354213754,1740349885361,-2549.36,0.00016931,2]
[354213755,1740349885370,-500.0,0.00016931,2]
[354213756,1740349885379,-249.13897103,0.00016931,2]
[354213757,1740349885389,-500.0,0.00016931,2]
[354213758,1740349885398,-1703.42,0.00016931,2]
[354213759,1740349885407,-869.03,0.00016931,2]
[354213760,1740349885416,-563.36,0.00016931,2]
[354213761,1740349885426,-500.0,0.00016931,2]
[354213762,1740349885435,-960.88,0.00016931,2]
[354213763,1740349885445,-500.0,0.00016931,2]
[354213764,1740349885454,-2267.54,0.00016931,2]
[354213765,1740349885463,-1037.4,0.00016931,2]
[354213766,1740349885473,-1420.41,0.00016931,2]
[354213767,1740349885482,-535.56,0.00016931,2]
[354213768,1740349885491,-448.08004992,0.00016931,2]
[354213769,1740349885501,-1222.57,0.00016931,2]
[354213770,1740349885510,-521.28698494,0.00016931,2]
[354213771,1740349885524,-786.04,0.00016931,2]
[354213772,1740349885533,-3008.1,0.00016931,2]
[354213773,1740349885543,-582.21,0.00016931,2]
[354213774,1740349885552,-1442.37,0.00016931,2]
[354213775,1740349885562,-507.67,0.00016931,2]
[354213776,1740349885571,-500.0,0.00016931,2]
[354213777,1740349885581,-1449.59,0.00016931,2]
[354213778,1740349885590,-500.0,0.00016931,2]
[354213779,1740349885600,-1488.88,0.00016931,2]
[354213780,1740349885610,-1426.91,0.00016931,2]
[354213781,1740349885619,-500.0,0.00016931,2]
[354213782,1740349885629,-2596.96,0.00016931,2]
[354213783,1740349885638,-1936.37,0.00016931,2]
[354213784,1740349885648,-500.0,0.00016931,2]
[354213785,1740349885657,-527.49657909,0.00016931,2]
[354213786,1740349885666,-2442.27,0.00016931,2]
[354213787,1740349885675,-2283.06,0.00016931,2]
[354213788,1740349885684,-3372.27,0.00016931,2]
[354213789,1740349885694,-500.0,0.00016931,2]
[354213790,1740349885704,-1222.2,0.00016931,2]
[354213791,1740349885713,-1507.49,0.00016931,2]
[354213792,1740349885723,-602.88,0.00016931,2]
[354213793,1740349885733,-500.0,0.00016931,2]
[354213794,1740349885742,-1664.77,0.00016931,2]
[354213795,1740349885751,-556.96235426,0.00016931,2]
[354213796,1740349885761,-1154.78,0.00016931,2]
[354213797,1740349885770,-536.34,0.00016931,2]
[354213798,1740349885779,-1756.63,0.00016931,2]
[354213799,1740349885788,-986.27,0.00016931,2]
[354213800,1740349885797,-1157.96,0.00016931,2]
[354213801,1740349885806,-1016.26,0.00016931,2]
[354213802,1740349885816,-923.34,0.00016931,2]
[354213803,1740349885825,-1532.84,0.00016931,2]
[354213804,1740349885834,-1904.49,0.00016931,2]
[354213805,1740349885843,-500.0,0.00016931,2]
[354213806,1740349885853,-500.0,0.00016931,2]
[354213807,1740349885862,-1326.46,0.00016931,2]
[354213808,1740349885871,-801.78,0.00016931,2]
[354213809,1740349885881,-612.54,0.00016931,2]
[354213810,1740349885890,-1334.47,0.00016931,2]
[354213811,1740349885899,-590.04,0.00016931,2]
[354213812,1740349885908,-1385.79,0.00016931,2]
[354213813,1740349885918,-500.0,0.00016931,2]
[354213814,1740349885927,-2494.38,0.00016931,2]
[354213815,1740349885936,-1090.53,0.00016931,2]
[354213816,1740349885945,-507.42,0.00016931,2]